bitfinex/quotes_SOLUSD_20250207
["timestamp","ask_amount","ask_price","bid_price","bid_amount"]
[1738900768586,16.05560657,193.49,193.47,0.0001]
[1738900772111,21.22380657,193.49,193.47,0.0001]
[1738900772707,5.1682,193.49,193.47,0.0001]
[1738900772894,0.03,193.5,193.47,0.0001]
[1738900773089,5.1979,193.5,193.47,0.0001]
[1738900774601,10.2730468,193.48,193.47,0.0001]
[1738900776212,15.4414468,193.48,193.47,0.0001]
[1738900780601,22.54751485,193.48,193.47,0.0001]
[1738900780813,35.95936338,193.48,193.47,0.0001]
[1738900782530,21.7786468,193.48,193.47,0.0001]
[1738900786228,5.1684,193.48,193.47,0.0001]
[1738900791525,0.03,193.49,193.47,0.0001]
[1738900794129,0.03,193.49,193.48,10.2730468]
[1738900797533,0.03,193.49,193.48,15.4414468]
[1738900797738,0.03,193.49,193.48,15.9434068]
[1738900799015,0.03,193.49,193.48,16.7184111]
[1738900799628,0.03,193.49,193.48,248.93025963]
[1738900799837,0.03,193.49,193.48,254.683803]
[1738900800513,0.03,193.49,193.48,295.7759902]
[1738900801837,0.03,193.49,193.48,254.683803]
[1738900802038,0.03,193.49,193.48,296.7759902]
[1738900802421,0.03,193.49,193.48,255.683803]
[1738900802615,0.03,193.49,193.48,240.27195447]
[1738900803733,0.03,193.49,193.48,95.73669447]
[1738900804037,0.03,193.49,193.48,91.8730468]
[1738900804439,0.03,193.49,193.48,92.1240268]
[1738900804831,0.03,193.49,193.48,98.31850233]
[1738900805024,0.03,193.49,193.48,292.02253806]
[1738900805025,0.0001,193.49,193.48,292.02253806]
[1738900805228,0.0001,193.54,193.52,20.0]
[1738900805447,0.0001,193.54,193.53,24.96162764]
[1738900805625,0.03,193.63,193.57,20.50196]
[1738900805830,0.03,193.63,193.61,10.2730468]
[1738900806742,0.03,193.63,193.62,10.2730468]
[1738900808137,0.03,193.63,193.62,15.9397068]
[1738900808440,0.03,193.63,193.62,10.2730468]
[1738900808625,0.03,193.63,193.62,16.02004397]
[1738900809141,0.03,193.63,193.6,16.02004397]
[1738900809322,0.03,193.63,193.59,16.02004397]
[1738900810438,0.03,193.63,193.6,16.02004397]
[1738900810823,0.03,193.63,193.59,16.02004397]
[1738900811362,0.03,193.63,193.6,16.02004397]
[1738900812550,0.03,193.63,193.62,16.02004397]
[1738900812724,0.03,193.63,193.62,16.52200397]
[1738900813747,0.03,193.63,193.62,21.68670397]
[1738900814429,0.03,193.63,193.62,22.46115611]
[1738900815154,0.03,193.63,193.62,159.66115611]
[1738900815324,0.03,193.63,193.62,172.2985525]
[1738900815525,0.03,193.63,193.62,173.2985525]
[1738900816446,0.03,193.63,193.62,174.2985525]
[1738900816655,0.03,193.65,193.64,49.9338525]
[1738900816863,0.03,193.65,193.64,50.70813935]
[1738900817846,0.03,193.65,193.64,187.90813935]
[1738900818169,0.03,193.65,193.64,195.9422525]
[1738900818462,0.03,193.68,193.67,13.91380853]
[1738900818630,0.03,193.68,193.67,167.90803665]
[1738900818954,0.03,193.68,193.67,167.1338525]
[1738900819453,0.03,193.68,193.67,172.2972525]
[1738900819838,0.03,193.68,193.67,16.02004397]
[1738900820043,0.03,193.68,193.66,16.02004397]
[1738900820542,0.03,193.68,193.67,16.02004397]
[1738900821238,0.03,193.68,193.67,22.45973769]
[1738900822537,0.0001,193.68,193.67,191.09163019]
[1738900822840,0.0001,193.68,193.67,191.90209647]
[1738900823039,0.0001,193.68,193.67,273.50209647]
[1738900824352,0.0001,193.68,193.67,272.50209647]
[1738900824737,0.0001,193.68,193.67,255.4820525]
[1738900824939,0.0001,193.68,193.67,240.48540397]
[1738900825764,0.0001,193.68,193.67,234.82004397]
[1738900826961,0.0001,193.68,193.66,16.02004397]
[1738900827261,0.0001,193.68,193.63,153.22004397]
[1738900827465,0.0001,193.68,193.63,16.02004397]
[1738900829057,0.0001,193.68,193.64,16.02004397]
[1738900829740,0.0001,193.68,193.63,16.02004397]
[1738900829941,0.0001,193.68,193.62,97.62004397]
[1738900830155,22.25604397,193.67,193.6,16.02004397]
[1738900830339,16.02004397,193.66,193.6,20.0]
[1738900830543,17.67484397,193.66,193.6,20.0]
[1738900830747,1.6548,193.66,193.6,36.02004397]
[1738900831144,6.8187,193.66,193.61,16.02004397]
[1738900831967,22.83874397,193.66,193.59,16.02004397]
[1738900832163,16.02004397,193.65,193.58,16.02004397]
[1738900832358,16.02004397,193.65,193.54,5.94142444]
[1738900832359,16.02004397,193.64,193.57,16.02004397]
[1738900832564,16.02004397,193.64,193.56,16.02004397]
[1738900832784,16.02004397,193.62,193.55,16.02004397]
[1738900833068,5.165,193.61,193.55,16.02004397]
[1738900833249,5.165,193.61,193.56,16.02004397]
[1738900833645,5.165,193.61,193.55,16.02004397]
[1738900834257,6.0175,193.6,193.54,16.02004397]
[1738900834457,6.0175,193.6,193.49,12.9205]
[1738900834458,17.60534397,193.58,193.51,16.02004397]
[1738900835274,6.7513,193.58,193.52,16.02004397]
[1738900835774,1.5853,193.58,193.54,16.02004397]
[1738900836072,1.5853,193.58,193.53,16.02004397]
[1738900836272,6.7511,193.58,193.53,16.02004397]
[1738900836452,6.7511,193.58,193.52,16.02004397]
[1738900837073,22.77114397,193.58,193.51,16.02004397]
[1738900837768,6.7511,193.58,193.53,16.02004397]
[1738900838851,22.77114397,193.58,193.51,16.02004397]
[1738900839668,22.77114397,193.58,193.52,16.02004397]
[1738900839669,6.7511,193.58,193.52,16.02004397]
[1738900840071,22.77114397,193.58,193.51,16.02004397]
[1738900841472,22.77114397,193.58,193.5,16.02004397]
[1738900841473,5.1663,193.56,193.5,16.02004397]
[1738900842176,5.1663,193.56,193.51,16.02004397]
[1738900843083,5.166,193.57,193.51,16.02004397]
[1738900843650,1.5853,193.58,193.52,16.02004397]
[1738900843854,1.5853,193.58,193.53,16.02004397]
[1738900844156,22.77124397,193.58,193.5,16.02004397]
[1738900844554,16.02004397,193.57,193.5,16.02004397]
[1738900845256,21.18634397,193.56,193.49,16.02004397]
[1738900845873,21.18634397,193.56,193.48,16.02004397]
[1738900846080,16.02004397,193.53,193.47,0.0001]
[1738900846279,16.02004397,193.51,193.47,0.0001]
[1738900846775,17.60534397,193.5,193.47,0.0001]
[1738900847570,5.1682,193.49,193.47,0.0001]
[1738900849672,16.02004397,193.48,193.47,0.0001]
[1738900849859,22.22074397,193.48,193.47,0.0001]
[1738900850367,6.2007,193.48,193.47,0.0001]
[1738900852667,11.3691,193.48,193.47,0.0001]
[1738900853680,27.38914397,193.48,193.47,0.0001]
[1738900854986,40.8009925,193.48,193.47,0.0001]
[1738900855591,41.56986055,193.48,193.47,0.0001]
[1738900857482,27.38914397,193.48,193.47,0.0001]
[1738900857674,6.2007,193.48,193.47,0.0001]
[1738900858298,27.38914397,193.48,193.47,0.0001]
[1738900858870,40.8009925,193.48,193.47,0.0001]
[1738900861589,2.25098,193.45,193.44,0.0001]
[1738900861888,14.66282853,193.43,193.42,0.063]
[1738900862065,31.57723055,193.43,193.42,0.063]
[1738900862266,31.57723055,193.43,193.42,0.0001]
[1738900862686,23.89864397,193.45,193.42,0.0001]
[1738900862989,29.06674397,193.5,193.42,16.02014397]
[1738900863374,16.02004397,193.49,193.42,16.02014397]
[1738900863780,21.18834397,193.49,193.42,16.02014397]
[1738900864582,16.02004397,193.48,193.42,0.0001]
[1738900865882,23.89864397,193.5,193.42,16.02014397]
[1738900866689,25.6839995,193.48,193.42,0.0001]
[1738900866889,25.6839995,193.46,193.42,0.0001]
[1738900867303,25.6839995,193.45,193.42,0.0001]
[1738900868299,30.8529995,193.46,193.42,0.0001]
[1738900868506,0.76886805,193.48,193.42,0.0001]
[1738900868507,30.8526995,193.48,193.42,0.0001]
[1738900868786,0.03,193.49,193.42,25.6840995]
[1738900869175,25.7139995,193.49,193.42,25.6840995]
[1738900869875,0.03,193.49,193.44,25.6839995]
[1738900870071,0.03,193.49,193.46,25.6839995]
[1738900870272,0.03,193.49,193.48,25.6839995]
[1738900870509,0.03,193.49,193.48,25.9349795]
[1738900871106,0.03,193.49,193.48,26.7099974]
[1738900871911,6.2859,193.6,193.52,0.25098]
[1738900872202,30.8486995,193.63,193.56,25.6839995]
[1738900872427,25.6839995,193.6,193.53,25.6839995]
[1738900872774,25.6839995,193.62,193.54,25.6839995]
[1738900872971,25.6839995,193.63,193.55,25.6839995]
[1738900873615,25.6839995,193.62,193.55,25.6839995]
[1738900873907,25.6839995,193.61,193.54,30.8507995]
[1738900874972,30.8487995,193.62,193.54,30.8507995]
[1738900875876,25.6839995,193.6,193.53,25.6839995]
[1738900876471,25.6839995,193.6,193.53,30.8510995]
[1738900876678,25.6839995,193.62,193.54,25.6839995]
[1738900876884,6.2859,193.65,193.58,25.6839995]
[1738900877097,25.6839995,193.67,193.6,25.6839995]
[1738900877372,30.8473995,193.67,193.6,25.6839995]
[1738900877581,5.1634,193.67,193.61,25.6839995]
[1738900877784,0.0001,193.68,193.62,25.6839995]
[1738900878195,0.0001,193.68,193.62,30.8486995]
[1738900878701,0.0001,193.68,193.62,25.6839995]
[1738900879880,0.0001,193.68,193.63,25.6839995]
[1738900880075,0.0001,193.68,193.65,25.6839995]
[1738900880286,0.0001,193.68,193.6,27.7932595]
[1738900880287,0.0001,193.68,193.67,25.6839995]
[1738900882199,0.0001,193.68,193.67,30.8473995]
[1738900882394,0.0001,193.68,193.67,25.6839995]
[1738900882779,0.0001,193.68,193.65,142.3637]
[1738900882780,0.0001,193.68,193.65,25.6839995]
[1738900883005,0.0001,193.68,193.64,25.6839995]
[1738900883492,0.0001,193.68,193.65,25.6839995]
[1738900883687,0.0001,193.68,193.66,25.6839995]
[1738900884493,0.0001,193.68,193.65,30.8477995]
[1738900885220,0.0001,193.68,193.65,25.6839995]
[1738900885398,0.0001,193.68,193.63,25.6839995]
[1738900886303,0.0001,193.68,193.61,168.0489995]
[1738900886606,0.0001,193.68,193.61,30.8489995]
[1738900886992,0.0001,193.68,193.62,25.6839995]
[1738900890421,0.0001,193.68,193.63,25.6839995]
[1738900890617,0.0001,193.68,193.64,16.01695909]
[1738900890825,0.0001,193.68,193.65,16.01695909]
[1738900890988,0.0001,193.68,193.67,16.01695909]
[1738900892114,0.0001,193.68,193.67,21.18035909]
[1738900892716,0.0001,193.68,193.67,30.77735263]
[1738900893598,0.0001,193.68,193.67,32.05361312]
[1738900893917,0.0001,193.68,193.67,183.66546165]
[1738900894118,0.0001,193.68,193.67,182.89116116]
[1738900894624,0.03,193.7,193.69,34.91380853]
[1738900894820,0.0001,193.7,193.69,224.11577121]
[1738900894999,0.0001,193.7,193.69,197.72776116]
[1738900895920,0.0001,193.7,193.69,201.89056116]
[1738900896693,0.0001,193.7,193.69,202.89056116]
[1738900897098,0.0001,193.7,193.69,201.89056116]
[1738900897601,0.0001,193.7,193.69,188.47871263]
[1738900897986,0.0001,193.7,193.69,168.47871263]
[1738900899493,0.0001,193.7,193.68,25.61395263]
[1738900900119,0.0001,193.7,193.69,25.61395263]
[1738900900594,0.0001,193.7,193.68,25.61395263]
[1738900901011,0.0001,193.7,193.69,25.61395263]
[1738900902328,0.0001,193.7,193.69,30.77675263]
[1738900904891,0.0001,193.7,193.68,25.61395263]
[1738900905096,0.0001,193.7,193.67,30.77735263]
[1738900905516,0.0001,193.7,193.66,162.81395263]
[1738900905815,0.0001,193.7,193.66,137.2]
[1738900906701,0.0001,193.7,193.66,162.81395263]
[1738900907312,0.0001,193.7,193.67,25.61395263]
[1738900907807,0.0001,193.7,193.69,25.61395263]
[1738900909099,0.0001,193.7,193.69,168.47871263]
[1738900909500,0.0001,193.7,193.69,32.27871263]
[1738900909702,0.0001,193.7,193.69,33.05280583]
[1738900910517,0.0001,193.7,193.69,210.27860699]
[1738900910714,0.0001,193.7,193.69,211.10211379]
[1738900910916,0.0001,193.72,193.71,1.50196]
[1738900911122,0.0001,193.72,193.71,27.88987062]
[1738900911720,0.0001,193.72,193.71,179.50171915]
[1738900911906,0.03,193.83,193.82,25.61395263]
[1738900914306,0.03,193.83,193.81,25.61395263]
[1738900914703,0.03,193.83,193.81,15.98810911]
[1738900915320,0.03,193.83,193.82,15.98810911]
[1738900917628,0.03,193.83,193.8,15.98810911]
[1738900918715,0.03,193.83,193.79,15.98810911]
[1738900918912,0.03,193.83,193.78,153.18810911]
[1738900919223,0.03,193.83,193.78,15.98810911]
[1738900919410,0.03,193.83,193.77,15.98810911]
[1738900920029,0.03,193.83,193.79,15.98810911]
[1738900920915,0.03,193.83,193.78,15.98810911]
[1738900921519,0.03,193.83,193.79,15.98810911]
[1738900922922,0.03,193.83,193.81,15.98810911]
[1738900923524,0.03,193.83,193.82,15.98810911]
[1738900923941,0.03,193.83,193.82,21.14750911]
[1738900924319,23.42115221,193.87,193.83,15.98810911]
[1738900927132,0.03,193.88,193.86,15.98810911]
[1738900927938,0.03,193.88,193.85,15.98810911]
[1738900928632,0.03,193.88,193.87,15.98810911]
[1738900929639,0.03,193.88,193.87,30.90191764]
[1738900929814,0.03,193.88,193.87,18.26345271]
[1738900930140,0.03,193.88,193.87,31.67530124]
[1738900930314,0.03,193.88,193.87,22.42145271]
[1738900931940,0.03,193.88,193.86,137.2]
[1738900932141,0.03,193.88,193.82,15.98810911]
[1738900932840,0.03,193.88,193.84,15.98810911]
[1738900933159,0.03,193.88,193.85,15.98810911]
[1738900933357,0.03,193.88,193.85,21.14660911]
[1738900933526,0.03,193.88,193.87,15.98810911]
[1738900935738,0.03,193.88,193.83,0.89907498]
[1738900935739,0.03,193.88,193.86,15.98810911]
[1738900936440,0.03,193.88,193.82,15.98810911]
[1738900936747,0.03,193.88,193.81,15.98810911]
[1738900937467,5.1878,193.88,193.81,15.98810911]
[1738900938944,0.03,193.88,193.84,15.98810911]
[1738900939431,0.03,193.88,193.83,15.98810911]
[1738900939844,0.03,193.88,193.84,15.98810911]
[1738900940947,0.03,193.88,193.85,15.98810911]
[1738900941148,0.03,193.88,193.87,15.98810911]
[1738900941322,0.03,193.88,193.87,16.23908911]
[1738900942225,0.03,193.88,193.87,21.64806911]
[1738900942521,0.03,193.9,193.89,20.25098]
[1738900942717,0.03,193.9,193.89,37.01248221]
[1738900943327,0.03,193.9,193.89,37.26346221]
[1738900944244,0.03,193.9,193.89,55.83281074]
[1738900945241,6.1649,194.0,193.93,20.0]
[1738900945425,6.1649,194.0,193.95,15.98810911]
[1738900946025,6.1649,194.0,193.96,15.98810911]
[1738900946531,6.1649,194.0,193.95,15.98810911]
[1738900947447,6.1649,194.0,193.96,15.98810911]
[1738900947628,1.6842,194.03,193.98,15.98810911]
[1738900949647,6.8381,194.03,193.95,15.98810911]
[1738900949850,15.98810911,194.01,193.93,15.98810911]
[1738900950039,6.8381,194.03,193.93,15.98810911]
[1738900950040,15.98810911,194.0,193.93,15.98810911]
[1738900950640,15.98810911,194.0,193.92,5.1567]
[1738900950641,16.01810911,194.0,193.92,15.98810911]
[1738900950843,15.98810911,193.99,193.92,15.98810911]
[1738900951951,5.1549,193.99,193.92,15.98810911]
[1738900952153,0.03,194.0,193.93,15.98810911]
[1738900952346,5.1847,194.0,193.94,15.98810911]
[1738900953450,14.5688,194.03,193.95,0.12549]
[1738900953451,21.14230911,194.02,193.95,0.12549]
[1738900953666,21.14230911,194.02,193.94,21.14420911]
[1738900954151,21.14230911,194.02,193.94,15.98810911]
[1738900954454,5.1542,194.02,193.95,15.98810911]
[1738900954657,21.14230911,194.02,193.95,15.98810911]
[1738900955352,21.14230911,194.02,193.94,15.98810911]
[1738900955655,5.1546,194.0,193.93,15.98810911]
[1738900956057,5.1546,194.0,193.94,15.98810911]
[1738900956260,15.98810911,194.02,193.95,16.23908911]
[1738900956446,22.82610911,194.03,193.96,15.98810911]
[1738900956763,15.98810911,194.02,193.95,16.11359911]
[1738900957559,21.14230911,194.02,193.95,16.11359911]
[1738900958277,15.98810911,194.01,193.94,15.98810911]
[1738900959060,15.98810911,194.01,193.93,15.98810911]
[1738900959258,15.98810911,193.98,193.9,153.18810911]
[1738900959442,21.99760911,193.97,193.9,158.34530911]
[1738900959638,21.99760911,193.97,193.9,21.14530911]
[1738900959838,6.0095,193.97,193.91,15.98810911]
[1738900962456,6.0095,193.97,193.91,16.05110911]
[1738900963761,6.0095,193.97,193.91,0.063]
[1738900963762,15.98810911,193.96,193.91,0.063]
[1738900964853,6.0095,193.97,193.91,0.063]
[1738900964854,6.0095,193.97,193.91,5.22]
[1738900965471,21.99760911,193.97,193.91,5.22]
[1738900965962,21.49760911,193.97,193.91,0.063]
[1738900966174,26.65310911,193.97,193.91,0.063]
[1738900967361,21.14390911,193.96,193.91,0.063]
[1738900969660,5.1558,193.96,193.91,0.063]
[1738900970352,5.5095,193.97,193.92,15.98810911]
[1738900970854,5.5095,193.97,193.91,0.063]
[1738900971361,10.6649,193.97,193.91,0.063]
[1738900972768,26.65300911,193.97,193.91,0.063]
[1738900974762,26.68300911,193.97,193.91,0.063]
[1738900974950,10.6949,193.97,193.91,0.063]
[1738900976284,5.5395,193.97,193.92,15.98810911]
[1738900976659,5.5395,193.97,193.92,10.22032445]
[1738900977783,5.5395,193.97,193.92,15.37702445]
[1738900977981,5.5395,193.97,193.93,10.47130445]
[1738900978163,0.03,193.97,193.96,10.22032445]
[1738900978967,0.03,193.97,193.95,10.22032445]
[1738900980253,0.03,193.97,193.94,15.37642445]
[1738900980455,0.03,193.97,193.91,0.063]
[1738900980456,10.22032445,193.96,193.91,0.063]
[1738900980650,18.11802445,193.96,193.91,0.063]
[1738900981657,10.22032445,193.94,193.91,0.063]
[1738900982655,15.97842284,193.94,193.91,0.063]
[1738900983703,21.13432284,193.95,193.91,0.063]
[1738900983882,13.0534,193.96,193.91,0.063]
[1738900984174,29.03182284,193.96,193.91,0.063]
[1738900986184,0.03,193.97,193.92,15.97842284]
[1738900986476,0.03,193.97,193.94,15.97842284]
[1738900989097,0.03,193.97,193.93,21.13472284]
[1738900990193,0.03,193.97,193.93,15.97842284]
[1738900990492,15.97842284,193.96,193.91,0.063]
[1738900992391,21.16392284,193.97,193.91,0.063]
[1738900993205,0.03,193.97,193.91,16.04142284]
[1738900994194,15.97842284,193.96,193.91,0.063]
[1738900994379,21.13412284,193.96,193.91,0.063]
[1738900995701,15.97842284,193.92,193.91,0.063]
[1738900995997,16.74729089,193.92,193.91,0.063]
[1738900996498,21.13512284,193.92,193.91,0.063]
[1738901001416,34.54697137,193.92,193.91,0.063]
[1738901001617,13.41184853,193.91,193.87,0.063]
[1738901001899,63.41729421,193.92,193.87,0.063]
[1738901001900,15.97842284,193.88,193.87,0.063]
[1738901003016,37.66177137,193.88,193.77,27.2235796]
[1738901003303,37.66177137,193.88,193.76,7.99003179]
[1738901003304,15.97842284,193.81,193.76,7.99003179]
[1738901003478,15.97842284,193.81,193.76,20.0]
[1738901003678,15.97842284,193.81,193.73,23.96845463]
[1738901004082,15.97842284,193.81,193.74,15.97842284]
[1738901004277,21.13832284,193.81,193.74,15.97842284]
[1738901006215,6.1047,193.79,193.73,15.97842284]
[1738901006708,22.08312284,193.79,193.72,16.04142284]
[1738901006901,22.08312284,193.79,193.74,15.97842284]
[1738901006902,6.1047,193.79,193.74,15.97842284]
[1738901008206,6.1047,193.83,193.77,15.97842284]
[1738901008515,27.24142284,193.87,193.8,15.97842284]
[1738901009590,27.24142284,193.87,193.79,15.97842284]
[1738901010492,15.97842284,193.86,193.79,15.97842284]
[1738901010888,27.24142284,193.87,193.8,15.97842284]
[1738901011102,6.1047,193.87,193.82,15.97842284]
[1738901011410,6.1047,193.87,193.83,15.97842284]
[1738901011907,6.1047,193.87,193.81,15.97842284]
[1738901012496,6.1047,193.87,193.82,15.97842284]
[1738901013734,6.1047,193.87,193.8,5.1599]
[1738901013735,6.1047,193.87,193.81,15.97842284]
[1738901014088,6.1047,193.87,193.82,15.97842284]
[1738901014911,6.1047,193.87,193.82,21.13762284]
[1738901016009,6.1047,193.87,193.82,5.1592]
[1738901018016,6.1047,193.87,193.8,20.0]
[1738901018017,15.97842284,193.86,193.8,20.0]
[1738901020312,6.1047,193.87,193.81,15.97842284]
[1738901020620,6.1047,193.87,193.82,15.97842284]
[1738901021498,6.1047,193.87,193.81,15.97842284]
[1738901022216,6.1047,193.87,193.82,5.1594]
[1738901022529,0.03,193.87,193.85,15.97842284]
[1738901023524,0.03,193.87,193.85,21.13692284]
[1738901025815,0.03,193.87,193.83,15.97842284]
[1738901027131,0.03,193.87,193.82,5.1591]
[1738901027343,15.97842284,193.86,193.8,25.1597]
[1738901027832,16.00842284,193.87,193.8,41.13812284]
[1738901028010,0.03,193.87,193.83,15.97842284]
[1738901028532,0.03,193.87,193.81,0.25098]
[1738901028533,0.03,193.87,193.82,15.97842284]
[1738901029133,0.03,193.87,193.83,15.97842284]
[1738901030430,0.03,193.87,193.84,5.1588]
[1738901030595,0.03,193.87,193.84,21.13722284]
[1738901031441,0.03,193.87,193.86,35.97842284]
[1738901032900,0.03,193.87,193.86,41.13672284]
[1738901040624,0.03,193.87,193.86,41.38770284]
[1738901040824,6.1159,193.96,193.88,0.25098]
[1738901041017,6.1159,193.96,193.91,15.97842284]
[1738901041736,6.1159,193.96,193.92,15.97842284]
[1738901042236,6.1159,193.96,193.93,15.97842284]
[1738901042641,0.03,193.97,193.94,10.21873961]
[1738901043136,0.03,193.97,193.95,10.21873961]
[1738901043342,0.03,193.97,193.96,10.21873961]
[1738901044747,0.03,193.97,193.96,15.96283973]
[1738901045230,0.03,193.97,193.96,16.21381973]
[1738901046434,0.03,193.97,193.96,21.62049973]
[1738901047648,0.03,193.97,193.96,172.23234826]
[1738901047825,0.03,194.0,193.99,36.21381973]
[1738901048228,0.03,194.0,193.99,36.46479973]
[1738901048452,0.03,194.0,193.99,37.23773339]
[1738901048647,0.03,194.0,193.99,42.39263339]
[1738901049537,0.03,194.03,194.0,0.25098]
[1738901049844,0.03,194.03,194.02,16.46479973]
[1738901050045,0.0001,194.03,194.02,29.87664826]
[1738901050630,0.0001,194.03,194.02,172.23074826]
[1738901050851,0.0001,194.07,194.06,22.0]
[1738901051029,15.95769388,194.28,194.17,0.50196]
[1738901051242,15.95769388,194.28,194.23,15.96283973]
[1738901051642,15.95769388,194.28,194.21,15.96283973]
[1738901051833,5.147,194.29,194.21,15.96283973]
[1738901052331,15.96283973,194.3,194.23,15.96283973]
[1738901052556,6.1159,194.31,194.25,15.96283973]
[1738901053038,6.1159,194.31,194.27,15.96283973]
[1738901053545,11.2624,194.31,194.25,15.96283973]
[1738901053759,27.22523973,194.31,194.23,15.96283973]
[1738901056167,15.96283973,194.28,194.21,15.96283973]
[1738901056358,15.96283973,194.26,194.19,15.96283973]
[1738901056855,15.96283973,194.25,194.2,20.0]
[1738901057044,15.96283973,194.25,194.17,16.21381973]
[1738901057435,21.11083973,194.25,194.17,15.96283973]
[1738901057631,15.96283973,194.24,194.17,15.96283973]
[1738901058557,15.96283973,194.24,194.14,15.96283973]
[1738901058558,15.96283973,194.21,194.14,15.96283973]
[1738901058788,15.96283973,194.21,194.13,15.96283973]
[1738901058963,15.96283973,194.19,194.12,15.96283973]
[1738901059756,15.96283973,194.19,194.11,15.96283973]
[1738901059757,21.11253973,194.19,194.11,15.96283973]
[1738901059962,15.96283973,194.18,194.1,15.96283973]
[1738901060341,6.1989,194.15,194.08,15.96283973]
[1738901060551,22.16173973,194.15,194.07,16.02583973]
[1738901060755,22.16173973,194.15,194.08,15.96283973]
[1738901060946,6.1989,194.15,194.09,15.96283973]
[1738901061862,11.3496,194.15,194.09,15.96283973]
[1738901062850,6.1989,194.15,194.12,15.96283973]
[1738901063041,6.2011,194.2,194.14,15.96283973]
[1738901063243,6.2011,194.2,194.15,15.96283973]
[1738901064766,11.3504,194.2,194.15,15.96283973]
[1738901065766,27.31323973,194.2,194.13,15.96283973]
[1738901065944,27.31323973,194.2,194.12,15.96283973]
[1738901066848,15.96283973,194.19,194.12,15.96283973]
[1738901067166,5.1498,194.18,194.12,15.96283973]
[1738901067363,15.96283973,194.17,194.09,15.96283973]
[1738901067557,15.96283973,194.16,194.09,15.96283973]
[1738901068055,15.96283973,194.17,194.1,15.96283973]
[1738901068252,21.11263973,194.18,194.11,15.96283973]
[1738901070759,15.96283973,194.17,194.1,15.96283973]
[1738901072262,15.96283973,194.17,194.07,0.063]
[1738901072263,5.1503,194.16,194.11,15.96283973]
[1738901072467,5.1503,194.16,194.1,15.96283973]
[1738901072848,17.48663973,194.15,194.08,15.96283973]
[1738901073260,17.48663973,194.15,194.1,15.96283973]
[1738901073261,1.5238,194.15,194.1,15.96283973]
[1738901073673,1.5238,194.15,194.09,15.96283973]
[1738901073975,1.5238,194.15,194.08,15.96283973]
[1738901074144,5.1509,194.14,194.09,15.96283973]
[1738901075276,1.5238,194.15,194.11,15.96283973]
[1738901075453,6.6745,194.15,194.1,15.96283973]
[1738901076455,6.6745,194.15,194.09,15.96283973]
[1738901077272,6.6745,194.15,194.1,15.96283973]
[1738901078466,6.6745,194.15,194.09,15.96283973]
[1738901078663,22.63733973,194.15,194.08,15.96283973]
[1738901078855,6.4169,194.12,194.07,0.063]
[1738901079059,15.96283973,194.09,194.07,0.063]
[1738901079871,16.73170778,194.09,194.07,0.063]
[1738901080074,29.37468826,194.08,194.07,0.063]
[1738901080369,34.52718826,194.08,194.07,0.063]
[1738901080855,36.08528826,194.08,194.07,0.063]
[1738901090988,37.46175826,194.08,194.07,0.0001]
[1738901091157,44.82945826,194.08,194.07,0.0001]
[1738901091365,43.82945826,194.08,194.07,0.0001]
[1738901092690,44.82945826,194.08,194.07,0.0001]
[1738901093271,43.82945826,194.08,194.07,0.0001]
[1738901095478,21.11533973,194.08,194.07,0.0001]
[1738901095685,5.1522,194.09,194.07,0.0001]
[1738901095880,24.12453973,194.14,194.07,15.96293973]
[1738901096081,6.6533,194.14,194.08,15.96283973]
[1738901096297,11.8042,194.14,194.08,15.96283973]
[1738901097187,11.8042,194.14,194.07,15.96293973]
[1738901097188,27.76703973,194.14,194.07,15.96293973]
[1738901097385,16.73170778,194.13,194.07,0.0001]
[1738901097580,15.96283973,194.11,194.07,0.0001]
[1738901097769,16.73170778,194.11,194.07,0.0001]
[1738901099168,5.1519,194.1,194.07,0.0001]
[1738901100294,13.41184853,194.09,194.07,0.0001]
[1738901100596,15.96283973,194.08,194.07,0.0001]
[1738901101189,29.37468826,194.08,194.07,0.0001]
[1738901103399,34.52718826,194.08,194.07,0.0001]
[1738901103692,5.1525,194.08,194.07,0.0001]
[1738901104287,21.11473973,194.11,194.07,0.0001]
[1738901104584,5.1519,194.11,194.07,0.0001]